[Event "*** SCC Grand Prix: Titled Tuesday Blitz"]
[Site "Chess.com"]
[Date "2020.07.21"]
[Round "10"]
[White "RubensCezila"]
[Black "KaterynaLagno"]
[Result "0-1"]
[WhiteElo "2577"]
[BlackElo "2725"]
[TimeControl "180+1"]
[EndTime "12:01:03 PDT"]
[Termination "KaterynaLagno won on time"]

1. c4 {[%clk 0:02:51.2]} 1... Nf6 {[%clk 0:02:59]} 2. Nc3 {[%clk 0:02:50.8]}
2... g6 {[%clk 0:02:59.4]} 3. Nf3 {[%clk 0:02:50.8]} 3... Bg7 {[%clk 0:02:59.1]}
4. g3 {[%clk 0:02:49.6]} 4... O-O {[%clk 0:02:57.6]} 5. Bg2 {[%clk 0:02:50.5]}
5... Nc6 {[%clk 0:02:56.5]} 6. O-O {[%clk 0:02:49.5]} 6... d5 {[%clk 0:02:56.2]}
7. cxd5 {[%clk 0:02:47.3]} 7... Nxd5 {[%clk 0:02:57.1]} 8. a3 {[%clk 0:02:42.2]}
8... Re8 {[%clk 0:02:51.4]} 9. d4 {[%clk 0:02:36.3]} 9... Nb6 {[%clk 0:02:50.4]}
10. e3 {[%clk 0:02:27.8]} 10... e5 {[%clk 0:02:47.6]} 11. d5 {[%clk 0:02:21.6]}
11... Na5 {[%clk 0:02:47.2]} 12. Nd2 {[%clk 0:02:12.3]} 12... Nac4 {[%clk
0:02:32.3]} 13. Nxc4 {[%clk 0:02:00.2]} 13... Nxc4 {[%clk 0:02:33.2]} 14. Qe2
{[%clk 0:01:57.2]} 14... Nd6 {[%clk 0:02:32.4]} 15. e4 {[%clk 0:01:56.3]} 15...
Bd7 {[%clk 0:02:23.1]} 16. Be3 {[%clk 0:01:52.8]} 16... f5 {[%clk 0:02:22.4]}
17. f3 {[%clk 0:01:52.9]} 17... Qf6 {[%clk 0:02:16]} 18. Rac1 {[%clk 0:01:48.8]}
18... h5 {[%clk 0:02:04.7]} 19. a4 {[%clk 0:01:45.6]} 19... a6 {[%clk
0:02:03.6]} 20. h4 {[%clk 0:01:41.9]} 20... f4 {[%clk 0:02:00.8]} 21. gxf4
{[%clk 0:01:34]} 21... exf4 {[%clk 0:01:40]} 22. Bf2 {[%clk 0:01:26.9]} 22...
Nf5 {[%clk 0:01:39]} 23. Qc4 {[%clk 0:01:21.2]} 23... Ng3 {[%clk 0:01:35.4]} 24.
Qxc7 {[%clk 0:00:56]} 24... Qxh4 {[%clk 0:00:35.6]} 25. Qxd7 {[%clk 0:00:52.5]}
25... Bxc3 {[%clk 0:00:35.6]} 26. Bxg3 {[%clk 0:00:35.9]} 26... fxg3 {[%clk
0:00:33.1]} 27. Rfd1 {[%clk 0:00:34.1]} 27... Be5 {[%clk 0:00:27.1]} 28. Qxb7
{[%clk 0:00:21.2]} 28... Rf8 {[%clk 0:00:26.9]} 29. Rc6 {[%clk 0:00:18.1]} 29...
Qh2+ {[%clk 0:00:25]} 30. Kf1 {[%clk 0:00:17.4]} 30... Rxf3+ {[%clk 0:00:25.7]}
31. Ke1 {[%clk 0:00:16.9]} 31... Qg1+ {[%clk 0:00:24.3]} 32. Kd2 {[%clk
0:00:15.8]} 32... Qxg2+ {[%clk 0:00:18.4]} 33. Kc1 {[%clk 0:00:16.2]} 33... Rb8
{[%clk 0:00:07.5]} 34. Rc8+ {[%clk 0:00:16.3]} 34... Rxc8+ {[%clk 0:00:06.9]}
35. Qxc8+ {[%clk 0:00:17.2]} 35... Kg7 {[%clk 0:00:06.9]} 36. Qb7+ {[%clk
0:00:16.8]} 36... Kh6 {[%clk 0:00:07]} 37. d6 {[%clk 0:00:17.2]} 37... Rf8
{[%clk 0:00:04.3]} 38. d7 {[%clk 0:00:16.3]} 38... Qf2 {[%clk 0:00:03.5]} 39.
Qb4 {[%clk 0:00:05.2]} 39... Qf4+ {[%clk 0:00:02.8]} 40. Qd2 {[%clk 0:00:06.1]}
40... Qxd2+ {[%clk 0:00:02.8]} 41. Kxd2 {[%clk 0:00:07]} 41... Rd8 {[%clk
0:00:02.8]} 42. Ke3 {[%clk 0:00:06.6]} 42... Kg5 {[%clk 0:00:03.5]} 43. Kf3
{[%clk 0:00:07]} 43... Kf6 {[%clk 0:00:04.2]} 44. Rd5 {[%clk 0:00:07.2]} 44...
h4 {[%clk 0:00:04.7]} 45. b4 {[%clk 0:00:07.4]} 45... g5 {[%clk 0:00:05.2]} 46.
b5 {[%clk 0:00:07.7]} 46... axb5 {[%clk 0:00:05.8]} 47. axb5 {[%clk 0:00:08.6]}
47... g4+ {[%clk 0:00:06.2]} 48. Kxg4 {[%clk 0:00:09.2]} 48... g2 {[%clk
0:00:06.3]} 49. Rd1 {[%clk 0:00:09.7]} 49... Rxd7 {[%clk 0:00:06.8]} 50. Rg1
{[%clk 0:00:05]} 50... Rg7+ {[%clk 0:00:06.8]} 51. Kh3 {[%clk 0:00:04.3]} 51...
Rg3+ {[%clk 0:00:07]} 52. Kxh4 {[%clk 0:00:04.7]} 52... Ke6 {[%clk 0:00:04.3]}
53. b6 {[%clk 0:00:04.2]} 53... Kd7 {[%clk 0:00:04.4]} 54. Rd1+ {[%clk
0:00:02.2]} 54... Kc8 {[%clk 0:00:04.4]} 55. Rg1 {[%clk 0:00:03.1]} 55... Kb7
{[%clk 0:00:04.6]} 56. Kh5 {[%clk 0:00:03.6]} 56... Kxb6 {[%clk 0:00:04.8]} 57.
Kh4 {[%clk 0:00:04.5]} 57... Kc5 {[%clk 0:00:05]} 58. Rc1+ {[%clk 0:00:04.7]}
58... Kd4 {[%clk 0:00:05.4]} 59. Rd1+ {[%clk 0:00:05.2]} 59... Kxe4 {[%clk
0:00:05.6]} 60. Re1+ {[%clk 0:00:05.7]} 60... Kf5 {[%clk 0:00:06]} 61. Rg1
{[%clk 0:00:05.3]} 61... Kf4 {[%clk 0:00:05.6]} 62. Kh5 {[%clk 0:00:02.6]} 62...
Kf3 {[%clk 0:00:05.9]} 63. Kh4 {[%clk 0:00:02.7]} 63... Kf2 {[%clk 0:00:06.3]}
0-1

[Event "*** SCC Grand Prix: Titled Tuesday Blitz"]
[Site "Chess.com"]
[Date "2020.07.21"]
[Round "10"]
[White "Eliwood44"]
[Black "Artyom_ChessMate"]
[Result "1/2-1/2"]
[WhiteElo "2360"]
[BlackElo "2590"]
[TimeControl "180+1"]
[EndTime "12:01:03 PDT"]
[Termination "Game drawn - insufficient material"]

1. d4 {[%clk 0:03:00.9]} 1... d5 {[%clk 0:02:59.3]} 2. Nf3 {[%clk 0:02:57.6]}
2... Nf6 {[%clk 0:02:58.9]} 3. e3 {[%clk 0:02:57.2]} 3... e6 {[%clk 0:02:58.7]}
4. Bd3 {[%clk 0:02:56.7]} 4... Be7 {[%clk 0:02:59.2]} 5. O-O {[%clk 0:02:56.8]}
5... O-O {[%clk 0:02:59.9]} 6. Nbd2 {[%clk 0:02:56.7]} 6... b6 {[%clk
0:03:00.4]} 7. e4 {[%clk 0:02:56]} 7... dxe4 {[%clk 0:02:56.4]} 8. Nxe4 {[%clk
0:02:55.9]} 8... Bb7 {[%clk 0:02:57.3]} 9. Nxf6+ {[%clk 0:02:47.7]} 9... Bxf6
{[%clk 0:02:58.2]} 10. c3 {[%clk 0:02:43.1]} 10... Nd7 {[%clk 0:02:56.2]} 11.
Be3 {[%clk 0:02:38.2]} 11... c5 {[%clk 0:02:44.7]} 12. Bb5 {[%clk 0:02:31.1]}
12... cxd4 {[%clk 0:02:43]} 13. Nxd4 {[%clk 0:02:25.7]} 13... Qc7 {[%clk
0:02:28.5]} 14. Nxe6 {[%clk 0:02:16.8]} 14... fxe6 {[%clk 0:02:11.6]} 15. Qxd7
{[%clk 0:02:12.8]} 15... Qxd7 {[%clk 0:02:10.4]} 16. Bxd7 {[%clk 0:02:13.7]}
16... e5 {[%clk 0:02:06.8]} 17. Rad1 {[%clk 0:02:08.1]} 17... Rfd8 {[%clk
0:02:05.1]} 18. Rd2 {[%clk 0:02:02.9]} 18... Kf8 {[%clk 0:02:02.9]} 19. Rfd1
{[%clk 0:02:02.2]} 19... Ke7 {[%clk 0:02:03.2]} 20. Bf5 {[%clk 0:02:01.2]} 20...
g6 {[%clk 0:01:56.6]} 21. Rd7+ {[%clk 0:02:00.3]} 21... Ke8 {[%clk 0:01:41.2]}
22. Be6 {[%clk 0:01:59.7]} 22... Rxd7 {[%clk 0:01:35.1]} 23. Bxd7+ {[%clk
0:01:49.1]} 23... Ke7 {[%clk 0:01:34.1]} 24. Bb5 {[%clk 0:01:38.2]} 24... Rd8
{[%clk 0:01:32.4]} 25. Rxd8 {[%clk 0:01:36.9]} 25... Kxd8 {[%clk 0:01:33.3]} 26.
a4 {[%clk 0:01:32]} 26... Kc7 {[%clk 0:01:21.7]} 27. Bc4 {[%clk 0:01:30.1]}
27... a5 {[%clk 0:01:17.5]} 28. g4 {[%clk 0:01:25.4]} 28... Bc6 {[%clk
0:01:16.4]} 29. g5 {[%clk 0:01:25.2]} 29... Be7 {[%clk 0:01:14.7]} 30. Bg8
{[%clk 0:01:23.8]} 30... Bxa4 {[%clk 0:00:55.5]} 31. Bxh7 {[%clk 0:01:23.4]}
31... Be8 {[%clk 0:00:56.4]} 32. Bg8 {[%clk 0:01:15.4]} 32... b5 {[%clk
0:00:55.3]} 33. h4 {[%clk 0:01:12.1]} 33... a4 {[%clk 0:00:52.5]} 34. Bd5 {[%clk
0:01:09.1]} 34... a3 {[%clk 0:00:48]} 35. bxa3 {[%clk 0:01:07.9]} 35... Bxa3
{[%clk 0:00:48.9]} 36. Kg2 {[%clk 0:01:02.3]} 36... Bb2 {[%clk 0:00:37.1]} 37.
Bd2 {[%clk 0:00:59.6]} 37... Kd6 {[%clk 0:00:37.3]} 38. Be4 {[%clk 0:00:58.8]}
38... Kc5 {[%clk 0:00:28.8]} 39. Bd3 {[%clk 0:00:55]} 39... Bc6+ {[%clk
0:00:21.4]} 40. f3 {[%clk 0:00:53.8]} 40... Be8 {[%clk 0:00:21.5]} 41. Kg3
{[%clk 0:00:48.2]} 41... Kd6 {[%clk 0:00:19.3]} 42. f4 {[%clk 0:00:46.8]} 42...
exf4+ {[%clk 0:00:19.1]} 43. Kxf4 {[%clk 0:00:45.2]} 43... Ke6 {[%clk
0:00:18.7]} 44. Be4 {[%clk 0:00:34.8]} 44... Ba3 {[%clk 0:00:16.5]} 45. Ke3
{[%clk 0:00:33.5]} 45... Bc5+ {[%clk 0:00:16.3]} 46. Kf3 {[%clk 0:00:33.6]}
46... Ba3 {[%clk 0:00:15]} 47. Be3 {[%clk 0:00:33.1]} 47... Bb2 {[%clk
0:00:13.2]} 48. Bd2 {[%clk 0:00:29.8]} 48... Ke5 {[%clk 0:00:11.3]} 49. Bd3
{[%clk 0:00:26.7]} 49... Bc6+ {[%clk 0:00:11.1]} 50. Kg3 {[%clk 0:00:25.3]}
50... Be8 {[%clk 0:00:12]} 51. Bf4+ {[%clk 0:00:17.7]} 51... Ke6 {[%clk
0:00:12.3]} 52. Bd2 {[%clk 0:00:13.7]} 52... Ke5 {[%clk 0:00:12.7]} 53. Be1
{[%clk 0:00:13.8]} 53... Ke6 {[%clk 0:00:11.3]} 54. Kf4 {[%clk 0:00:12.7]} 54...
Ba3 {[%clk 0:00:09.5]} 55. Ke3 {[%clk 0:00:11]} 55... Bc5+ {[%clk 0:00:08.8]}
56. Kd2 {[%clk 0:00:10.6]} 56... Bd6 {[%clk 0:00:09.3]} 57. c4 {[%clk
0:00:09.7]} 57... Bb4+ {[%clk 0:00:04.6]} 58. Ke2 {[%clk 0:00:09.1]} 58... Bxe1
{[%clk 0:00:05.1]} 59. Kxe1 {[%clk 0:00:08.3]} 59... bxc4 {[%clk 0:00:06]} 60.
Bxc4+ {[%clk 0:00:08.5]} 60... Kf5 {[%clk 0:00:06.9]} 61. Be2 {[%clk 0:00:08.4]}
61... Kf4 {[%clk 0:00:07.3]} 62. Kf2 {[%clk 0:00:08.6]} 62... Bd7 {[%clk
0:00:07.7]} 63. Kg2 {[%clk 0:00:08.3]} 63... Be8 {[%clk 0:00:07.9]} 64. Kh2
{[%clk 0:00:08.6]} 64... Bd7 {[%clk 0:00:08.2]} 65. Bd3 {[%clk 0:00:08.5]} 65...
Kg4 {[%clk 0:00:07.2]} 66. Bxg6 {[%clk 0:00:08.2]} 66... Kxh4 {[%clk 0:00:07.8]}
67. Bd3 {[%clk 0:00:08.7]} 67... Kxg5 {[%clk 0:00:08.2]} 1/2-1/2

[Event "*** SCC Grand Prix: Titled Tuesday Blitz"]
[Site "Chess.com"]
[Date "2020.07.21"]
[Round "10"]
[White "TST2014"]
[Black "tk22h"]
[Result "1/2-1/2"]
[WhiteElo "2509"]
[BlackElo "2331"]
[TimeControl "180+1"]
[EndTime "12:01:05 PDT"]
[Termination "Game drawn by repetition"]

1. d4 {[%clk 0:02:32.3]} 1... Nf6 {[%clk 0:02:57.7]} 2. c4 {[%clk 0:02:32.1]}
2... g6 {[%clk 0:02:57.3]} 3. Nc3 {[%clk 0:02:31.9]} 3... d5 {[%clk 0:02:57.1]}
4. Nf3 {[%clk 0:02:31.7]} 4... Bg7 {[%clk 0:02:56.6]} 5. Bg5 {[%clk 0:02:32.3]}
5... Ne4 {[%clk 0:02:53.9]} 6. Bh4 {[%clk 0:02:32.2]} 6... Nxc3 {[%clk
0:02:53.2]} 7. bxc3 {[%clk 0:02:33.1]} 7... c5 {[%clk 0:02:53.3]} 8. e3 {[%clk
0:02:31.3]} 8... Nc6 {[%clk 0:02:51.1]} 9. cxd5 {[%clk 0:02:25.5]} 9... Qxd5
{[%clk 0:02:50.9]} 10. Qb3 {[%clk 0:02:25]} 10... Qxb3 {[%clk 0:02:48]} 11. axb3
{[%clk 0:02:24.7]} 11... cxd4 {[%clk 0:02:48.1]} 12. cxd4 {[%clk 0:02:18.4]}
12... e6 {[%clk 0:02:48]} 13. Bb5 {[%clk 0:02:13.6]} 13... Bd7 {[%clk
0:02:47.9]} 14. O-O {[%clk 0:02:10.9]} 14... a6 {[%clk 0:02:47.8]} 15. Bc4
{[%clk 0:02:06.8]} 15... O-O {[%clk 0:02:43.4]} 16. Rfc1 {[%clk 0:02:04.5]}
16... Rfc8 {[%clk 0:02:42.9]} 17. Bg3 {[%clk 0:01:54.1]} 17... Bf8 {[%clk
0:02:35.8]} 18. h3 {[%clk 0:01:41.8]} 18... Nb4 {[%clk 0:02:35.2]} 19. Ne5
{[%clk 0:01:39.4]} 19... Be8 {[%clk 0:02:34.8]} 20. Ng4 {[%clk 0:01:36.6]} 20...
Be7 {[%clk 0:02:29]} 21. Be5 {[%clk 0:01:35.9]} 21... h5 {[%clk 0:02:26.2]} 22.
Nf6+ {[%clk 0:01:35.5]} 22... Bxf6 {[%clk 0:02:26.2]} 23. Bxf6 {[%clk
0:01:36.4]} 23... Bc6 {[%clk 0:02:19.2]} 24. f3 {[%clk 0:01:32.1]} 24... Bd5
{[%clk 0:02:19]} 25. e4 {[%clk 0:01:29.6]} 25... Bxc4 {[%clk 0:02:12.4]} 26.
bxc4 {[%clk 0:01:27.1]} 26... Kf8 {[%clk 0:02:01.9]} 27. Kf1 {[%clk 0:01:17.7]}
27... b5 {[%clk 0:02:01.4]} 28. c5 {[%clk 0:01:10.6]} 28... Ke8 {[%clk
0:01:59.5]} 29. Ke2 {[%clk 0:01:09.2]} 29... Kd7 {[%clk 0:01:58.5]} 30. h4
{[%clk 0:00:56.4]} 30... Kc6 {[%clk 0:01:57.9]} 31. g4 {[%clk 0:00:56.1]} 31...
a5 {[%clk 0:01:41.3]} 32. gxh5 {[%clk 0:00:49.4]} 32... gxh5 {[%clk 0:01:41.7]}
33. Rg1 {[%clk 0:00:49.9]} 33... Rg8 {[%clk 0:01:37.7]} 34. Rxg8 {[%clk
0:00:45.4]} 34... Rxg8 {[%clk 0:01:37.2]} 35. Rxa5 {[%clk 0:00:46]} 35... Rg2+
{[%clk 0:01:36.6]} 36. Ke3 {[%clk 0:00:36.2]} 36... Ra2 {[%clk 0:01:19.8]} 37.
Rxa2 {[%clk 0:00:21]} 37... Nxa2 {[%clk 0:01:20.7]} 38. Kf4 {[%clk 0:00:21.6]}
38... Nc1 {[%clk 0:01:14.5]} 39. Kg5 {[%clk 0:00:20.9]} 39... b4 {[%clk
0:01:13]} 40. Kxh5 {[%clk 0:00:20.5]} 40... b3 {[%clk 0:01:12.4]} 41. Kg4 {[%clk
0:00:20.8]} 41... Nd3 {[%clk 0:01:09.9]} 42. d5+ {[%clk 0:00:16.7]} 42... exd5
{[%clk 0:01:09.1]} 43. exd5+ {[%clk 0:00:16.7]} 43... Kxd5 {[%clk 0:01:09]} 44.
Ba1 {[%clk 0:00:16.3]} 44... Nxc5 {[%clk 0:00:54.4]} 45. h5 {[%clk 0:00:16.2]}
45... Ne6 {[%clk 0:00:53.5]} 46. h6 {[%clk 0:00:15.7]} 46... Nf8 {[%clk
0:00:53.4]} 47. Kf5 {[%clk 0:00:16.1]} 47... Nh7 {[%clk 0:00:53]} 48. f4 {[%clk
0:00:15.3]} 48... Kc4 {[%clk 0:00:50.5]} 49. Ke4 {[%clk 0:00:15.6]} 49... Kc5
{[%clk 0:00:46.3]} 50. Bb2 {[%clk 0:00:14.6]} 50... Kc4 {[%clk 0:00:45.8]} 51.
f5 {[%clk 0:00:13.6]} 51... Kc5 {[%clk 0:00:44.2]} 52. Ke5 {[%clk 0:00:11.7]}
52... Kc6 {[%clk 0:00:40.3]} 53. Kd4 {[%clk 0:00:10.1]} 53... Kd6 {[%clk
0:00:36.9]} 54. Ba3+ {[%clk 0:00:10.3]} 54... Kd7 {[%clk 0:00:35.6]} 55. Kc4
{[%clk 0:00:10.5]} 55... Kc6 {[%clk 0:00:35.2]} 56. Kxb3 {[%clk 0:00:10.6]}
56... Kd5 {[%clk 0:00:35.3]} 57. Bb2 {[%clk 0:00:10.7]} 57... Ke4 {[%clk
0:00:34.6]} 58. f6 {[%clk 0:00:10.5]} 58... Kf5 {[%clk 0:00:34.4]} 59. Kc4
{[%clk 0:00:11.1]} 59... Nxf6 {[%clk 0:00:30]} 60. Kc5 {[%clk 0:00:07.7]} 60...
Kg6 {[%clk 0:00:29.1]} 61. Kd6 {[%clk 0:00:07.4]} 61... Ng8 {[%clk 0:00:26.1]}
62. Ke5 {[%clk 0:00:06.1]} 62... Nxh6 {[%clk 0:00:25.3]} 63. Kf4 {[%clk
0:00:06.2]} 63... f5 {[%clk 0:00:25.1]} 64. Bc3 {[%clk 0:00:06]} 64... Nf7
{[%clk 0:00:24.9]} 65. Bd4 {[%clk 0:00:05.7]} 65... Nd8 {[%clk 0:00:24.8]} 66.
Bc3 {[%clk 0:00:04.9]} 66... Ne6+ {[%clk 0:00:24.7]} 67. Ke5 {[%clk 0:00:05.4]}
67... Ng5 {[%clk 0:00:24.5]} 68. Ba1 {[%clk 0:00:03.4]} 68... Nf7+ {[%clk
0:00:22.6]} 69. Kf4 {[%clk 0:00:03.6]} 69... Ng5 {[%clk 0:00:22.5]} 70. Ke5
{[%clk 0:00:03.5]} 70... Nf7+ {[%clk 0:00:22.5]} 71. Kf4 {[%clk 0:00:04.1]}
71... Ng5 {[%clk 0:00:22.7]} 72. Ke5 {[%clk 0:00:04.4]} 1/2-1/2

[Event "*** SCC Grand Prix: Titled Tuesday Blitz"]
[Site "Chess.com"]
[Date "2020.07.21"]
[Round "10"]
[White "Schack-Hugo"]
[Black "Roman_Ovetchkin"]
[Result "0-1"]
[WhiteElo "2218"]
[BlackElo "2596"]
[TimeControl "180+1"]
[EndTime "12:01:17 PDT"]
[Termination "Roman_Ovetchkin won on time"]

1. c3 {[%clk 0:03:00.9]} 1... Nf6 {[%clk 0:02:53.8]} 2. d4 {[%clk 0:03:01.8]}
2... g6 {[%clk 0:02:53.8]} 3. Nf3 {[%clk 0:03:01.5]} 3... Bg7 {[%clk 0:02:54.7]}
4. g3 {[%clk 0:03:01.7]} 4... O-O {[%clk 0:02:55.5]} 5. Bg2 {[%clk 0:03:02.1]}
5... d6 {[%clk 0:02:53.8]} 6. O-O {[%clk 0:03:03]} 6... c6 {[%clk 0:02:54.2]} 7.
e3 {[%clk 0:03:01]} 7... Qc7 {[%clk 0:02:53.4]} 8. Nbd2 {[%clk 0:03:01.1]} 8...
e5 {[%clk 0:02:53.9]} 9. dxe5 {[%clk 0:03:00.7]} 9... dxe5 {[%clk 0:02:54.8]}
10. e4 {[%clk 0:03:01.1]} 10... Re8 {[%clk 0:02:48.7]} 11. Qe2 {[%clk
0:02:59.9]} 11... Na6 {[%clk 0:02:48]} 12. Nc4 {[%clk 0:02:57.1]} 12... Nc5
{[%clk 0:02:47.5]} 13. Ncxe5 {[%clk 0:02:48.3]} 13... Rxe5 {[%clk 0:02:44.2]}
14. Nxe5 {[%clk 0:02:41.5]} 14... Qxe5 {[%clk 0:02:43.5]} 15. Bf4 {[%clk
0:02:39.1]} 15... Qe8 {[%clk 0:02:31.1]} 16. Rad1 {[%clk 0:02:08.4]} 16... Be6
{[%clk 0:02:28.3]} 17. b3 {[%clk 0:02:04.6]} 17... a5 {[%clk 0:02:16.9]} 18. Bd6
{[%clk 0:01:45]} 18... Ncd7 {[%clk 0:02:01.3]} 19. c4 {[%clk 0:01:44.7]} 19...
h5 {[%clk 0:01:56.7]} 20. e5 {[%clk 0:01:38.2]} 20... Ng4 {[%clk 0:01:54.2]} 21.
f4 {[%clk 0:01:35.3]} 21... Qd8 {[%clk 0:01:46.7]} 22. c5 {[%clk 0:01:27.8]}
22... a4 {[%clk 0:01:44.8]} 23. b4 {[%clk 0:01:27.7]} 23... a3 {[%clk
0:01:43.8]} 24. h3 {[%clk 0:01:15.6]} 24... Nh6 {[%clk 0:01:42.2]} 25. b5 {[%clk
0:01:15.3]} 25... Qa5 {[%clk 0:01:16.9]} 26. bxc6 {[%clk 0:01:13.3]} 26... bxc6
{[%clk 0:01:17]} 27. Bxc6 {[%clk 0:01:06]} 27... Rc8 {[%clk 0:01:16.4]} 28. Bb7
{[%clk 0:00:49.2]} 28... Rxc5 {[%clk 0:01:14.6]} 29. Bxc5 {[%clk 0:00:47.7]}
29... Qxc5+ {[%clk 0:01:14.5]} 30. Qf2 {[%clk 0:00:47]} 30... Bxh3 {[%clk
0:00:59.2]} 31. Qxc5 {[%clk 0:00:44.8]} 31... Nxc5 {[%clk 0:00:58.8]} 32. Bg2
{[%clk 0:00:45.4]} 32... Be6 {[%clk 0:00:56.8]} 33. Rd8+ {[%clk 0:00:44.6]}
33... Bf8 {[%clk 0:00:51.9]} 34. Ra8 {[%clk 0:00:45.5]} 34... Nd7 {[%clk
0:00:42.5]} 35. Rc1 {[%clk 0:00:44.7]} 35... Kg7 {[%clk 0:00:41.6]} 36. Rcc8
{[%clk 0:00:36.4]} 36... Bc5+ {[%clk 0:00:39.8]} 37. Kf1 {[%clk 0:00:31.2]}
37... Bxa2 {[%clk 0:00:29.8]} 38. Bh3 {[%clk 0:00:23.9]} 38... Bc4+ {[%clk
0:00:25.8]} 39. Ke1 {[%clk 0:00:23.9]} 39... Bb4+ {[%clk 0:00:21.5]} 40. Kf2
{[%clk 0:00:21.8]} 40... Nb6 {[%clk 0:00:21.2]} 41. Rxc4 {[%clk 0:00:11.9]}
41... Nxc4 {[%clk 0:00:19.4]} 42. Ra4 {[%clk 0:00:12.4]} 42... Bc5+ {[%clk
0:00:19]} 43. Kf3 {[%clk 0:00:11.2]} 43... Nb6 {[%clk 0:00:18.4]} 44. Ra6 {[%clk
0:00:11.1]} 44... Bg1 {[%clk 0:00:17.4]} 45. Ke4 {[%clk 0:00:10.5]} 45... Nc4
{[%clk 0:00:16.8]} 46. Ra4 {[%clk 0:00:09.3]} 46... Nd2+ {[%clk 0:00:16]} 47.
Kd3 {[%clk 0:00:09.4]} 47... Nb3 {[%clk 0:00:14.6]} 48. Rxa3 {[%clk 0:00:08.9]}
48... Nc5+ {[%clk 0:00:14.3]} 49. Kc4 {[%clk 0:00:08.9]} 49... Nf5 {[%clk
0:00:14.6]} 50. Bxf5 {[%clk 0:00:08.4]} 50... gxf5 {[%clk 0:00:14]} 51. Kd5
{[%clk 0:00:08.5]} 51... Ne4 {[%clk 0:00:13.9]} 52. Rb3 {[%clk 0:00:05.8]} 52...
Bf2 {[%clk 0:00:13.8]} 53. Rb7 {[%clk 0:00:06.2]} 53... Kg6 {[%clk 0:00:12.7]}
54. e6 {[%clk 0:00:06.3]} 54... fxe6+ {[%clk 0:00:12.4]} 55. Kc6 {[%clk
0:00:06.8]} 55... Bxg3 {[%clk 0:00:12.7]} 56. Re7 {[%clk 0:00:06.8]} 56... Bxf4
{[%clk 0:00:12.9]} 57. Rxe6+ {[%clk 0:00:06.8]} 57... Kg5 {[%clk 0:00:13.8]} 58.
Re8 {[%clk 0:00:06.9]} 58... Nf6 {[%clk 0:00:13.1]} 59. Re1 {[%clk 0:00:06.8]}
59... h4 {[%clk 0:00:13.1]} 60. Rg1+ {[%clk 0:00:07]} 60... Bg3 {[%clk
0:00:13.4]} 61. Kc5 {[%clk 0:00:05.1]} 61... f4 {[%clk 0:00:14.3]} 62. Kd4
{[%clk 0:00:05.2]} 62... h3 {[%clk 0:00:14.7]} 63. Rh1 {[%clk 0:00:05]} 63... h2
{[%clk 0:00:15]} 64. Kd3 {[%clk 0:00:05.5]} 64... Kg4 {[%clk 0:00:14.2]} 65. Ke2
{[%clk 0:00:05.7]} 65... f3+ {[%clk 0:00:14.5]} 66. Ke3 {[%clk 0:00:06.2]} 66...
Nd5+ {[%clk 0:00:14.1]} 67. Ke4 {[%clk 0:00:06.4]} 67... Nc3+ {[%clk 0:00:13.1]}
68. Kd3 {[%clk 0:00:06.4]} 68... Ne2 {[%clk 0:00:12.7]} 69. Ke3 {[%clk
0:00:06.8]} 69... Ng1 {[%clk 0:00:12.4]} 0-1